Cogmind - Beta 13 @@@ ROGUE MODE // 2024.04.01 @ 21:05:53 Player: SPRING Result: Destroyed by D-53 Grenadier with Mini Grenade Launcher Performance ------------- Evolutions (0) 0 Regions Visited (4) 800 Robots Destroyed (48) 240 Value Destroyed (629) 629 Prototype IDs (2) 40 Alien Tech Used (0) 0 Bonus (300) 300 TOTAL SCORE: 2009 Bonus ------- Aligned with FarCom 300 Cogmind --------- Core Integrity 0/250 Matter 181/300 Energy 218/250 System Corruption 2% Temperature Cool (0) Movement Treading (320) Ox2 Location -9/Mines Parts ------- > --- POWER (1) -------- Ion Engine > --- PROPULSION (2) --- Light Treads Light Treads > --- UTILITY (2) ------ Huge Storage Unit > --- WEAPON (2) ------- Light EM Pulse Cannon Light Assault Rifle > --- INVENTORY (25) --- Ion Engine Ion Engine Improved Heat Sink Large Storage Unit Weight Redist. System Structural Scanner Sensor Array Sensor Array Transport Network Coupler Targeting Computer ECM Suite ECM Suite Hardened Light Armor Plating Hardened Light Armor Plating Field Recycling Unit (0) PSU Rigger Beam Cannon Rocket Launcher Rocket Launcher Datajack Mining Laser Mining Claw Blade Trap Peak State ------------ > --- POWER ------------ Ion Engine > --- PROPULSION ------- Light Treads Light Treads > --- UTILITY ---------- Small Storage Unit Visual Processing Unit > --- WEAPON ----------- Improved Medium Laser Improved Medium Laser > --- INVENTORY -------- Ion Engine Aluminum Leg Aluminum Leg VTOL Module VTOL Module Improved Medium Laser Light EM Pulse Cannon Light EM Pulse Cannon [Rating: 13] Favorites ----------- Power Ion Engine Engine Ion Engine Propulsion Light Treads Treads Light Treads Leg Aluminum Leg Utility Signal Interpreter Storage Huge Storage Unit Processor Signal Interpreter Weapon Light Assault Rifle Energy Gun Improved Medium Laser Energy Cannon Light EM Pulse Cannon Ballistic Gun Light Assault Rifle Ballistic Cannon Light Cannon Launcher Rocket Launcher Build | -11 -10 -10 -10 -9 ------- Run | Yrd Mat Min Exi Min Slots Evolved . | . . . . . Power . | . . . . . Propulsion . | . . . . . Utility . | . . . . . Weapon . | . . . . . Parts Attached 31 | 6 21 . . 4 Power 6 | 1 5 . . . Engine 6 | 1 5 . . . Core . | . . . . . Reactor . | . . . . . Propulsion 8 | 2 6 . . . Treads 5 | 2 3 . . . Leg 3 | . 3 . . . Wheel . | . . . . . Hover . | . . . . . Flight . | . . . . . Utility 5 | 1 4 . . . Device . | . . . . . Storage 3 | 1 2 . . . Processor 2 | . 2 . . . Hackware . | . . . . . Protection . | . . . . . Artifact . | . . . . . Weapon 12 | 2 6 . . 4 Energy Gun 4 | 2 2 . . . Energy Cannon 2 | . 1 . . 1 Ballistic Gun 2 | . 1 . . 1 Ballistic Cannon 2 | . 2 . . . Launcher 2 | . . . . 2 Special Weapon . | . . . . . Impact Weapon . | . . . . . Slashing Weapon . | . . . . . Piercing Weapon . | . . . . . Special Melee Weapon . | . . . . . Unidentified Prototypes 1 | . 1 . . . Parts Lost 6 | . 4 . . 2 Power 1 | . 1 . . . Propulsion 2 | . 2 . . . Utility 1 | . . . . 1 Weapon 2 | . 1 . . 1 Highest Loss Streak 2 | . 2 . . 2 To Critical Strikes 1 | . 1 . . . Average Slot Usage (%) 99 | . 98 100 100 97 Engine 13 | . 13 14 14 14 Treads 26 | . 24 28 28 28 Leg 1 | . 3 . . . Storage 14 | . 14 14 14 14 Processor 13 | . 13 14 14 12 Energy Gun 2 | . 5 . . . Energy Cannon 10 | . 7 14 14 12 Ballistic Gun 11 | . 9 14 14 10 Ballistic Cannon 2 | . 4 . . . Naked Turns . | . . . . . Heaviest Build 93 | 14 90 90 90 93 Greatest Support 40 | 40 40 40 40 40 Greatest Overweight (x) 2 | . 2 2 2 2 Average Overweight (x) 1 | . 1 2 2 2 Largest Inventory Capacity 25 | 8 25 25 25 25 Average Capacity 21 | 7 19 25 25 25 Most Carried 25 | 4 20 23 24 25 Average Carried 17 | 2 13 21 23 23 Final Capacity 25 | 8 25 25 25 25 Final Carried 24 | 4 20 23 24 23 Class Distribution -------------------- 90% | Mutant 9% | Scavenger-Mutant Dominant Class ---------------- Mutant | -10/Materials Mutant | -10/Mines Mutant | -10/Exiles Mutant | -9/Mines Resources | -11 -10 -10 -10 -9 ----------- Run | Yrd Mat Min Exi Min Matter Collected 807 | 260 526 21 . . Remotely . | . . . . . Salvage Created 1169 | 24 992 109 . 44 Parts 80 | 3 72 5 . . Haulers Intercepted 2 | . 2 . . . Recyclers Shooed 2 | 1 1 . . . Parts Field Recycled . | . . . . . Retrieved Matter . | . . . . . Parts Self-Destructed . | . . . . . Prevented . | . . . . . Kills | -11 -10 -10 -10 -9 ------- Run | Yrd Mat Min Exi Min Combat Hostiles Destroyed 32 | . 17 2 . 13 Guns 6 | . 6 . . . Cannons 12 | . 10 2 . . AOE 13 | . . . . 13 Classes Destroyed 10 | 1 7 1 . 1 Worker 12 | 2 8 . . 2 Builder 9 | . 7 2 . . Tunneler 1 | . . 1 . . Hauler 2 | . 2 . . . Recycler 1 | . 1 . . . Operator 1 | . 1 . . . Watcher 3 | . 3 . . . Swarmer 7 | . 5 2 . . Grunt 12 | . 12 . . . Assembled 13 | . . . . 13 Best Kill Streak 15 | 1 5 2 . 15 Combat Bots Only 13 | . 3 1 . 13 Max Kills in Single Turn 4 | 1 1 1 . 4 Gunslinging . | . . . . . Exploded 3 | . . . . 3 Melee . | . . . . . Uniques/NPCs Destroyed . | . . . . . Combat | -11 -10 -10 -10 -9 -------- Run | Yrd Mat Min Exi Min Hostile Shots Fired 154 | . 125 14 . 15 Missed 36 | . 30 3 . 3 Damage Taken 1427 | . 1037 90 . 300 Core 255 | . 161 25 . 69 Absorbed by Shields . | . . . . . Core Remaining (%) 100 | 100 . . . . Volleys Fired 143 | 11 105 21 . 6 Largest 2 | 2 2 2 . 2 Hottest 112 | 100 112 76 . 66 Shots Fired 278 | 22 205 42 . 9 Gun 166 | 22 122 21 . 1 Cannon 104 | . 83 21 . . Launcher 8 | . . . . 8 Special . | . . . . . Kinetic 121 | . 99 21 . 1 Thermal 113 | 22 91 . . . Explosive 8 | . . . . 8 Electromagnetic 36 | . 15 21 . . Robot Hit Streak 12 | 3 8 12 . 3 Robot Miss Streak 6 | 3 6 3 . 1 Penetration Max . | . . . . . Secondary Targets . | . . . . . Shots Hit Robots 137 | 12 97 24 . 4 Core Hits 80 | 3 44 8 . 25 Critical Kills . | . . . . . Critical Parts Destroyed . | . . . . . Critical Strikes 11 | 1 10 . . . Burn 8 | 1 7 . . . Blast 3 | . 3 . . . Melee Attacks . | . . . . . Impact . | . . . . . Slashing . | . . . . . Piercing . | . . . . . Sneak Attacks . | . . . . . Combat Hostiles . | . . . . . Follow-up Attacks . | . . . . . Damage Inflicted 3055 | 150 1706 380 . 819 Guns 1064 | 150 841 73 . . Cannons 1163 | . 856 307 . . Explosions 819 | . . . . 819 Melee . | . . . . . Ramming 9 | . 9 . . . Kinetic 726 | . 653 73 . . Thermal 867 | 150 717 . . . Explosive 819 | . . . . 819 Electromagnetic 634 | . 327 307 . . Impact . | . . . . . Slashing . | . . . . . Piercing . | . . . . . Highest Corruption 2 | . . . . 2 Average Corruption 2 | . . . . 2 Corruption Purged . | . . . . . Corruption Blocked . | . . . . . Effects 1 | . . . . 1 Energy Discharges 1 | . . . . 1 Overload Shots . | . . . . . Overflow Damage 16 | . . 16 . . Projectiles 16 | . . 16 . . Explosions . | . . . . . Melee . | . . . . . Knockbacks 5 | . 5 . . . Impact 1 | . 1 . . . Kinetic 3 | . 3 . . . Secondary 1 | . 1 . . . Self-Inflicted Damage 107 | . . . . 107 Shots 3 | . . . . 3 Rammed 1 | . 1 . . . Targets Rammed 1 | . 1 . . . Kicked . | . . . . . Crushed . | . . . . . Highest Temperature 420 | 234 420 136 . 32 Average Temperature 100 | 86 112 56 . 14 Received Heat Transfer 380 | . 360 . . 20 Effects 5 | . 5 . . . Shutdowns 1 | . 1 . . . Matter Decay 1 | . 1 . . . Damage (minor) 3 | . 3 . . . Siege Activations . | . . . . . Robots Corrupted 1 | . 1 . . . Combat Hostiles 1 | . 1 . . . Parts Fried 7 | . 1 6 . . Impact Corruptions . | . . . . . Robots Melted . | . . . . . Combat Hostiles . | . . . . . Parts Melted 6 | . 5 . . 1 Heat Transferred 2590 | 518 2072 . . . Parts Sabotaged . | . . . . . Parts Stolen . | . . . . . Parts Stripped . | . . . . . Power Chain Reactions . | . . . . . Alert | -11 -10 -10 -10 -9 ------- Run | Yrd Mat Min Exi Min Peak Influence 224 | 10 224 30 . 49 Initial 6 | . 6 . . . Average 31 | 2 50 5 . 4 Maximum Alert Level 1 | . 1 . . . Low Security (%) 99 | 100 99 100 . 100 Level 1 . | . . . . . Level 2 . | . . . . . Level 3 . | . . . . . Level 4 . | . . . . . Level 5 . | . . . . . High Security . | . . . . . Max Security . | . . . . . Squads Dispatched 4 | . 4 . . . Investigation 3 | . 3 . . . Extermination . | . . . . . Reinforcement 1 | . 1 . . . Assault . | . . . . . Garrison . | . . . . . Intercept . | . . . . . Searches Triggered . | . . . . . Construction Impeded . | . . . . . Haulers Reinforced . | . . . . . Active Scanning Responses . | . . . . . Cargo Convoy Interrupts . | . . . . . Stealth | -11 -10 -10 -10 -9 --------- Run | Yrd Mat Min Exi Min Distress Signals 1 | . 1 . . . Communications Jammed . | . . . . . Distress Signals . | . . . . . Times Spotted 43 | . 22 2 . 19 Peak Tracking Total 8 | . 3 1 . 8 Tactical Retreats 1 | . . . . 1 Traps | -11 -10 -10 -10 -9 ------- Run | Yrd Mat Min Exi Min Traps Triggered 2 | . 2 . . . Indirectly . | . . . . . Trap Hack Attempts . | . . . . . Triggered . | . . . . . Disarmed . | . . . . . Reprogrammed . | . . . . . Reused . | . . . . . Traps Extracted . | . . . . . Installed 2 | . . 2 . . Triggered . | . . . . . Most Traps Carried 1 | . . 1 1 1 Machines | -11 -10 -10 -10 -9 ---------- Run | Yrd Mat Min Exi Min Machines Disabled 1 | . 1 . . . Max in Single Turn 1 | . 1 . . . Machines Repaired . | . . . . . Machines Dismantled . | . . . . . Machines Sabotaged . | . . . . . Overloaded Fab Kills . | . . . . . Hacking | -11 -10 -10 -10 -9 --------- Run | Yrd Mat Min Exi Min Machines Accessed 8 | . 7 . 1 . Terminals 6 | . 6 . . . Fabricators . | . . . . . Repair Stations . | . . . . . Recycling Units 1 | . 1 . . . Scanalyzers . | . . . . . Garrison Access . | . . . . . Total Hacks 21 | . 17 . 4 . Successful 14 | . 10 . 4 . Failed 7 | . 7 . . . Catastrophic . | . . . . . Database Lockouts . | . . . . . Manual 6 | . 4 . 2 . Terminals 16 | . 16 . . . Fabricators . | . . . . . Repair Stations . | . . . . . Recycling Units 1 | . 1 . . . Scanalyzers . | . . . . . Garrison Access . | . . . . . Terminal Hacks 13 | . 9 . 4 . Record 7 | . 3 . 4 . Robot Analysis 1 | . 1 . . . Prototype ID Bank 1 | . 1 . . . Emergency Access Points 1 | . 1 . . . Investigation Status 1 | . 1 . . . Reinforcement Status 1 | . 1 . . . Hauler Manifests 1 | . 1 . . . Fabricator Hacks . | . . . . . Repair Station Hacks . | . . . . . Recycling Unit Hacks 1 | . 1 . . . Report Inventory 1 | . 1 . . . Scanalyzer . | . . . . . Garrison Access Hacks . | . . . . . Unauthorized Hacks . | . . . . . Terminals . | . . . . . Fabricators . | . . . . . Repair Stations . | . . . . . Recycling Units . | . . . . . Scanalyzers . | . . . . . Garrison Access . | . . . . . Data Cores Recovered . | . . . . . Used . | . . . . . Hacking Detections 3 | . 3 . . . Full Trace Events 2 | . 2 . . . Feedback Events . | . . . . . Feedback Blocked . | . . . . . Robot Schematics Acquired . | . . . . . Robots Built . | . . . . . Authchips . | . . . . . Time . | . . . . . Total Robot Build Rating . | . . . . . Part Schematics Acquired . | . . . . . Parts Built . | . . . . . Authchips . | . . . . . Time . | . . . . . Total Part Build Rating . | . . . . . Parts Repaired . | . . . . . Time . | . . . . . Parts Recycled . | . . . . . Recycled Matter . | . . . . . Retrieved Matter . | . . . . . Retrieved Components . | . . . . . Parts Scanalyzed . | . . . . . Part Schematics Acquired . | . . . . . Parts Damaged . | . . . . . Bothacking | -11 -10 -10 -10 -9 ------------ Run | Yrd Mat Min Exi Min Used RIF Installer . | . . . . . Robots Hacked . | . . . . . Non-combat . | . . . . . Combat . | . . . . . Robot Hacks Applied . | . . . . . Relay Couplers Released . | . . . . . Fabnet Peak Effective % . | . . . . . Robots Rewired . | . . . . . Allies Hacked . | . . . . . Hacks Repelled . | . . . . . Allies | -11 -10 -10 -10 -9 -------- Run | Yrd Mat Min Exi Min Total Allies 3 | . . . . 3 Largest Group 3 | . . . . 3 Highest-Rated Group 40 | . . . . 40 Highest-Rated Ally 16 | . . . . 16 Total Orders . | . . . . . Ally Attacks 22 | . . . . 22 Total Damage 250 | . . . . 250 Kills 3 | . . . . 3 Allies Corrupted . | . . . . . Allies Melted . | . . . . . Intel | -11 -10 -10 -10 -9 ------- Run | Yrd Mat Min Exi Min Robot Analysis Total 1 | . 1 . . . Derelict Logs Recovered 3 | . . 1 . 2 Drone Launches . | . . . . . Drone Recoveries . | . . . . . Exploration | -11 -10 -10 -10 -9 ------------- Run | Yrd Mat Min Exi Min Turns Passed 6959 | 248 3229 1944 1355 183 Spaces Moved 2409 | 129 1218 587 424 51 Core 3 | 3 . . . . Treads 2242 | 126 1054 587 424 51 Legs 164 | . 164 . . . Wheels . | . . . . . Hover . | . . . . . Flight . | . . . . . Fastest Speed 50 | 50 160 320 320 320 Average Speed 267 | 157 234 320 320 320 Slowest Speed 320 | 160 320 320 320 320 Overloaded Moves . | . . . . . Propulsion Burnouts . | . . . . . Robots Hopped . | . . . . . Cave-ins Triggered . | . . . . . Exploration Rate (%) 53 | 9 90 84 72 14 Regions Visited 4 Branch Regions 3 Pre-discovered Areas 1 | . . . 1 . Known Exits Taken 3 | . 1 1 1 . Unknown Exits Taken 1 | 1 . . . . Scrap Searched 1 | . . 1 . . Spaces Dug . | . . . . . Terrain Destroyed 64 | . . . . 64 Melee . | . . . . . Projectile . | . . . . . AOE 64 | . . . . 64 Terrain Rammed . | . . . . . Walls Destroyed . | . . . . . Machines Disabled . | . . . . . Actions | -11 -10 -10 -10 -9 --------- Run | Yrd Mat Min Exi Min Total 2660 | 149 1406 617 424 64 Wait 3 | . . 3 . . Move 2405 | 128 1217 586 423 51 Hop . | . . . . . Pick Up 42 | 4 33 4 1 . Fast Attach 10 | 6 4 . . . Attach 15 | . 11 . . 4 Detach 11 | . 8 . . 3 Swap 6 | . 6 . . . Drop 22 | . 21 1 . . Fire 143 | 11 105 21 . 6 Melee . | . . . . . Ram . | . . . . . Kick . | . . . . . Crush 1 | . 1 . . . Escape Stasis . | . . . . . Rewire . | . . . . . Trap 2 | . . 2 . . Miscellaneous . | . . . . . Route ------- -11/Scrapyard -10/Materials (discovered 3 exits: *Mat x2 / *Min) -10/Mines (discovered 2 exits: *Mat / *Exi) -10/Exiles (discovered 2 exits: *Min x2) -9/Mines (discovered 2 exits: *Mat x2) History --------- Turn | Location | Event 25 | -11/Scrapyard | Discovered new exit (range 16) 249 | -11/Scrapyard | Entered Materials 307 | -10/Materials | Build established: Mutant 623 | -10/Materials | Discovered new exit (range 18) 845 | -10/Materials | Identified exit to Mines 1016 | -10/Materials | Core integrity fell below 50% 1298 | -10/Materials | Discovered new exit (range 5) 1308 | -10/Materials | Identified exit to Materials 1918 | -10/Materials | Discovered exit to Materials (range 15) 2272 | -10/Materials | Build established: Scavenger-Mutant 2966 | -10/Materials | Build established: Mutant 3478 | -10/Materials | Entered Mines 3508 | -10/Mines | Met a Derelict bent on vengeance 3568 | -10/Mines | Learned Materials emergency access door positions 3610 | -10/Mines | Found a hidden stash of uninstalled traps 5153 | -10/Mines | Discovered exit to Materials (range 8) 5368 | -10/Mines | Deemed a non-threat by the Exiles lab entrance 5371 | -10/Mines | Discovered new exit (range 5) 5416 | -10/Mines | Identified exit to Exiles 5422 | -10/Mines | Entered Exiles 5502 | -10/Exiles | Discovered new exit (range 15) 5563 | -10/Exiles | Identified exit to Mines 5656 | -10/Exiles | Met 8R-AWN 5730 | -10/Exiles | Met EX-HEX 5966 | -10/Exiles | Met EX-DEC 6142 | -10/Exiles | Met EX-BIN 6203 | -10/Exiles | Aligned with FarCom system 6206 | -10/Exiles | Given EX-Vault access code 6309 | -10/Exiles | Opened EX-Vault 6341 | -10/Exiles | Found Prototype Device 6415 | -10/Exiles | Warned to stay clear of 0b10 Research branches 6598 | -10/Exiles | Learned location of Zion (-7) 6732 | -10/Exiles | Discovered exit to Mines (range 11) 6777 | -10/Exiles | Left Exiles lab with PSU Rigger 6777 | -10/Exiles | Entered Mines 6787 | -9/Mines | Assisted by bots powering up and referring to "LRC-V3" 6790 | -9/Mines | Identified exit to Materials 6877 | -9/Mines | Learned location of 1 exit from Materials 6896 | -9/Mines | Discovered exit to Materials (range 15) 6897 | -9/Mines | Assembled infested the area 6902 | -9/Mines | Assisted by a Guerilla fighting off Assembled 6944 | -9/Mines | Core integrity fell below 20% 6960 | -9/Mines | Destroyed by D-53 Grenadier with Mini Grenade Launcher Last Messages --------------- as-24534 destroyed. K-01 Serf destroyed. as-53378 destroyed. Rocket Launcher destroyed. as-40659 destroyed. as-94470 destroyed. as-10381 destroyed. as-10589 destroyed. as-90738 destroyed. as-52165 destroyed. as-75649 destroyed. The unstable cave ceiling collapses. System corrupted: Energy discharge (-77). as-13092 destroyed. The unstable cave ceiling collapses. R-06 Scavenger collects Aluminum Leg. K-01 Serf collects debris. C-30 ARC bursts open, deploying its payload. D-53 Grenadier unfolds itself. R-06 Scavenger destroyed. Map ----- +----------------------------------------------------+ | ?????????????????????????????????????? | | ?????????????????????????????????????? | | ?????????????????????????????????????? | | ?????????????????????????????????????? | | ?????????????????????????????????????? | | ?????????????????????????????????????? | | ?????????????????????????????????????? | | ?????????????????????????????????????? | | ????????????????????????????#####????? | | ????????????????????????????# #????? | | ?????????????????????????#### #????? | | ?????????????????????????# #????? | | ?????????????????????????## ###### | | ??????????????????????????## # | | ???????????????????????????# | | ???????????????????????????# ## | | ???????????????????????????## ##? | | ????????????????????????????## #?? | | ?????????????################# ##?? | | ?????????????# ##??? | | ???????????###d ##???? | | ???????????# %##################????? | | ???# ??#### d ####????????????????? | | ???# # ####?????????????? | | ?????# #?????????????? | | ??????# @ ## #????????????? | | ??????# #??## #????????????? | | ?????# = #????????????????? | | ?????# %= # #??????????????? | | ?????# !* #??????????????? | | ?????# ##??????????????? | | ????# % #??????????????? | | ????# ##??????????????? | | ???# % #???????????????? | | ???#